fUST/lending_fUST_20250531
["ID","MTS","AMOUNT","RATE_DAILY","PERIOD"]
[363332213,1748680233316,-433.81139158,0.00016438,2]
[363332214,1748680233325,-2039.92,0.00016438,2]
[363332215,1748680233335,-430.0,0.00016438,2]
[363332216,1748680233344,-430.0,0.00016438,2]
[363332217,1748680233354,-1308.83,0.00016438,2]
[363332218,1748680233364,-430.0,0.00016438,2]
[363332219,1748680233373,-199.31889864,0.00016438,2]
[363332220,1748680233383,-430.0,0.00016438,2]
[363332221,1748680233393,-507.89,0.00016438,2]
[363332222,1748680233404,-430.0,0.00016438,2]
[363332223,1748680233414,-758.04,0.00016438,2]
[363332224,1748680233424,-430.0,0.00016438,2]
[363332225,1748680233434,-430.0,0.00016438,2]
[363332226,1748680233443,-430.0,0.00016438,2]
[363332227,1748680233452,-430.0,0.00016438,2]
[363332228,1748680233462,-430.0,0.00016438,2]
[363332229,1748680233472,-1656.47,0.00016438,2]
[363332230,1748680233481,-430.0,0.00016438,2]
[363332231,1748680233491,-430.0,0.00016438,2]
[363332232,1748680233500,-430.0,0.00016438,2]
[363332233,1748680233510,-238.07994512,0.00016438,2]
[363332234,1748680233519,-430.0,0.00016438,2]
[363332235,1748680233530,-430.0,0.00016438,2]
[363332236,1748680233540,-430.0,0.00016438,2]
[363332237,1748680233550,-430.0,0.00016438,2]
[363332238,1748680233559,-430.0,0.00016438,2]
[363332239,1748680233568,-692.71,0.00016438,2]
[363332240,1748680233578,-430.0,0.00016438,2]
[363332241,1748680233588,-290.0,0.00016438,2]
[363332242,1748680233597,-430.0,0.00016438,2]
[363332243,1748680233607,-430.0,0.00016438,2]
[363332244,1748680233617,-430.0,0.00016438,2]
[363332245,1748680233626,-430.0,0.00016438,2]
[363332246,1748680233635,-430.0,0.00016438,2]
[363332247,1748680233645,-430.0,0.00016438,2]
[363332248,1748680233655,-430.0,0.00016438,2]
[363332249,1748680233665,-454.91,0.00016438,2]
[363332250,1748680233675,-430.0,0.00016438,2]
[363332251,1748680233684,-510.0,0.00016438,2]
[363332252,1748680233695,-633.95,0.00016438,2]
[363332253,1748680233704,-430.0,0.00016438,2]
[363332254,1748680233714,-430.0,0.00016438,2]
[363332255,1748680233723,-382.71303947,0.00016438,2]
[363332256,1748680233732,-430.0,0.00016438,2]
[363332257,1748680233741,-430.0,0.00016438,2]
[363332258,1748680233750,-430.0,0.00016438,2]
[363332259,1748680233760,-430.0,0.00016438,2]
[363332260,1748680233770,-430.0,0.00016438,2]
[363332261,1748680233779,-430.0,0.00016438,2]
[363332262,1748680233789,-430.0,0.00016438,2]
[363332263,1748680233799,-430.0,0.00016438,2]
[363332264,1748680233809,-518.1225301,0.00016438,2]
[363332265,1748680233819,-430.0,0.00016438,2]
[363332266,1748680233828,-430.0,0.00016438,2]
[363332267,1748680233837,-746.34,0.00016438,2]
[363332268,1748680233847,-430.0,0.00016438,2]
[363332269,1748680233857,-430.0,0.00016438,2]
[363332270,1748680233867,-462.73193462,0.00016438,2]
[363332271,1748680233876,-170.35409438,0.00016438,2]
[363332272,1748680233886,-430.0,0.00016438,2]
[363332273,1748680233897,-430.0,0.00016438,2]
[363332274,1748680233908,-290.9141955,0.00016438,2]
[363332275,1748680233918,-430.0,0.00016438,2]
[363332276,1748680233928,-631.7,0.00016438,2]
[363332277,1748680233938,-1264.09,0.00016438,2]
[363332278,1748680233948,-430.0,0.00016438,2]
[363332279,1748680233958,-557.93213054,0.00016438,2]
[363332280,1748680233968,-430.0,0.00016438,2]
[363332281,1748680233978,-1512.98,0.00016438,2]
[363332282,1748680233988,-430.0,0.00016438,2]
[363332283,1748680233998,-430.0,0.00016438,2]
[363332284,1748680234008,-500.0,0.00016709,2]
[363332285,1748680234018,-430.0,0.00016712,2]
[363332286,1748680234031,-430.0,0.00016712,2]
[363332287,1748680234040,-430.0,0.00016712,2]
[363332288,1748680234049,-430.0,0.00016712,2]
[363332289,1748680234059,-430.0,0.00016712,2]
[363332290,1748680234069,-430.0,0.00016712,2]
[363332291,1748680234080,-430.0,0.00016712,2]
[363332292,1748680234090,-430.0,0.00016712,2]
[363332293,1748680234099,-430.0,0.00016712,2]
[363332294,1748680234109,-430.0,0.00016712,2]
[363332295,1748680234118,-430.0,0.00016712,2]
[363332296,1748680234127,-430.0,0.00016712,2]
[363332297,1748680234136,-430.0,0.00016712,2]
[363332298,1748680234146,-430.0,0.00016712,2]
[363332299,1748680234157,-441.32,0.00016712,2]
[363332300,1748680234167,-430.0,0.00016712,2]
[363332301,1748680234177,-430.0,0.00016712,2]
[363332302,1748680234187,-430.0,0.00016712,2]
[363332303,1748680234196,-430.0,0.00016712,2]
[363332304,1748680234206,-430.0,0.00016712,2]
[363332305,1748680234215,-430.0,0.00016712,2]
[363332306,1748680234225,-430.0,0.00016712,2]
[363332307,1748680234235,-430.0,0.00016712,2]
[363332308,1748680234244,-430.0,0.00016712,2]
[363332309,1748680234254,-430.0,0.00016712,2]
[363332310,1748680234263,-430.0,0.00016712,2]
[363332311,1748680234273,-732.35,0.00016712,2]
[363332312,1748680234283,-1677.22,0.00016712,2]
[363332313,1748680234292,-430.0,0.00016712,2]
[363332314,1748680234302,-430.0,0.00016712,2]
[363332315,1748680234312,-430.0,0.00016712,2]
[363332316,1748680234322,-430.0,0.00016712,2]
[363332317,1748680234333,-430.0,0.00016712,2]
[363332318,1748680234343,-965.51,0.00016712,2]
[363332319,1748680234354,-2039.92,0.00016712,2]
[363332320,1748680234363,-1308.83,0.00016712,2]
[363332321,1748680234373,-430.0,0.00016712,2]
[363332322,1748680234383,-430.0,0.00016712,2]
[363332323,1748680234392,-507.89,0.00016712,2]
[363332324,1748680234403,-430.0,0.00016712,2]
[363332325,1748680234413,-758.04,0.00016712,2]
[363332326,1748680234423,-430.0,0.00016712,2]
[363332327,1748680234432,-430.0,0.00016712,2]
[363332328,1748680234442,-430.0,0.00016712,2]
[363332329,1748680234451,-430.0,0.00016712,2]
[363332330,1748680234460,-1656.47,0.00016712,2]
[363332331,1748680234469,-430.0,0.00016712,2]
[363332332,1748680234479,-430.0,0.00016712,2]
[363332333,1748680234488,-430.0,0.00016712,2]
[363332334,1748680234497,-430.0,0.00016712,2]
[363332335,1748680234506,-692.71,0.00016712,2]
[363332336,1748680234516,-359.13200969,0.00016712,2]
[363332337,1748680234526,-430.0,0.00016712,2]
[363332338,1748680234536,-430.0,0.00016712,2]
[363332339,1748680234545,-430.0,0.00016712,2]
[363332340,1748680234554,-430.0,0.00016712,2]
[363332341,1748680234565,-430.0,0.00016712,2]
[363332342,1748680234574,-430.0,0.00016712,2]
[363332343,1748680234583,-454.91,0.00016712,2]
[363332344,1748680234592,-430.0,0.00016712,2]
[363332345,1748680234601,-633.95,0.00016712,2]
[363332346,1748680234611,-430.0,0.00016712,2]
[363332347,1748680234621,-430.0,0.00016712,2]
[363332348,1748680234630,-430.0,0.00016712,2]
[363332349,1748680234640,-430.0,0.00016712,2]
[363332350,1748680234651,-430.0,0.00016712,2]
[363332351,1748680234660,-430.0,0.00016712,2]
[363332352,1748680234669,-430.0,0.00016712,2]
[363332353,1748680234679,-430.0,0.00016712,2]
[363332354,1748680234688,-746.34,0.00016712,2]
[363332355,1748680234698,-430.0,0.00016712,2]
[363332356,1748680234708,-430.0,0.00016712,2]
[363332357,1748680234718,-430.0,0.00016712,2]
[363332358,1748680234727,-631.7,0.00016712,2]
[363332359,1748680234737,-1264.09,0.00016712,2]
[363332360,1748680234746,-430.0,0.00016712,2]
[363332361,1748680234756,-430.0,0.00016712,2]
[363332362,1748680234765,-1512.98,0.00016712,2]
[363332363,1748680234774,-430.0,0.00016712,2]
[363332364,1748680234784,-255.0,0.00016725,2]
[363332365,1748680234794,-430.0,0.00016984,2]
[363332366,1748680234803,-430.0,0.00016984,2]
[363332367,1748680234812,-430.0,0.00016984,2]
[363332368,1748680234822,-332.00300017,0.00016984,2]
[363332369,1748680234922,-67.99699983,0.00016984,2]
[363332370,1748680234932,-212.68930549,0.00016984,2]
[363332399,1748680238552,-430.0,0.00016438,2]
[363332401,1748680238563,-430.0,0.00016438,2]
[363332403,1748680238572,-500.0,0.00016709,2]
[363332405,1748680238582,-424.4039418,0.00016709,2]
[363332407,1748680238591,-362.25674058,0.00016709,2]
[363332409,1748680238601,-500.0,0.00016709,2]
[363332411,1748680238611,-500.0,0.00016709,2]
[363332413,1748680238620,-500.0,0.00016709,2]
[363332415,1748680238630,-500.0,0.00016709,2]
[363332417,1748680238639,-270.0,0.00016712,2]
[363332419,1748680238649,-430.0,0.00016712,2]
[363332421,1748680238661,-187.31069451,0.00016984,2]
[363332423,1748680238671,-400.0,0.00016984,2]
[363332425,1748680238680,-400.0,0.00016984,2]
[363332427,1748680238690,-404.95013063,0.00016984,2]
[363332430,1748680238699,-416.68412064,0.00016984,2]
[363332432,1748680238708,-430.0,0.00016984,2]
[363332434,1748680238717,-403.00917067,0.00016984,2]
[363332437,1748680238727,-400.0,0.00016984,2]
[363332439,1748680238736,-400.0,0.00016984,2]
[363332441,1748680238746,-400.0,0.00016984,2]
[363332443,1748680238756,-430.0,0.00016984,2]
[363332445,1748680238766,-400.0,0.00016984,2]
[363332447,1748680238776,-400.0,0.00016984,2]
[363332449,1748680238785,-430.0,0.00016984,2]
[363332451,1748680238795,-400.0,0.00016984,2]
[363332453,1748680238804,-430.0,0.00016984,2]
[363332455,1748680238814,-561.83503069,0.00016984,2]
[363332457,1748680238824,-430.0,0.00016984,2]
[363332459,1748680238833,-443.5571818,0.00016984,2]
[363332461,1748680238842,-430.0,0.00016984,2]
[363332463,1748680238852,-400.0,0.00016984,2]
[363332465,1748680238861,-400.0,0.00016984,2]
[363332467,1748680238871,-400.0,0.00016984,2]
[363332469,1748680238880,-430.0,0.00016984,2]
[363332471,1748680238890,-430.0,0.00016984,2]
[363332473,1748680238898,-416.06911421,0.00016984,2]
[363332475,1748680238907,-400.0,0.00016984,2]
[363332477,1748680238917,-400.0,0.00016984,2]
[363332479,1748680238927,-430.0,0.00016984,2]
[363332481,1748680238937,-400.0,0.00016984,2]
[363332483,1748680238946,-400.0,0.00016984,2]
[363332485,1748680238955,-435.40676977,0.00016984,2]
[363332487,1748680238965,-298.79108871,0.00016984,2]
[363332489,1748680238974,-400.0,0.00016984,2]
[363332491,1748680238984,-400.0,0.00016984,2]
[363332493,1748680238993,-430.0,0.00016984,2]
[363332495,1748680239003,-430.0,0.00016984,2]
[363332497,1748680239012,-402.41709308,0.00016984,2]
[363332499,1748680239023,-400.0,0.00016984,2]
[363332501,1748680239032,-400.0,0.00016984,2]
[363332503,1748680239042,-426.63972116,0.00016984,2]
[363332505,1748680239051,-400.0,0.00016984,2]
[363332507,1748680239061,-430.0,0.00016984,2]
[363332509,1748680239074,-430.0,0.00016984,2]
[363332511,1748680239085,-430.0,0.00016984,2]
[363332513,1748680239094,-541.49316756,0.00016984,2]
[363332515,1748680239105,-430.0,0.00016984,2]
[363332517,1748680239115,-621.4327951,0.00016984,2]
[363332519,1748680239125,-430.0,0.00016984,2]
[363332521,1748680239134,-1285.56,0.00016984,2]
[363332523,1748680239144,-432.10339866,0.00016984,2]
[363332525,1748680239153,-430.0,0.00016984,2]
[363332527,1748680239164,-430.0,0.00016984,2]
[363332529,1748680239173,-562.06,0.00016984,2]
[363332531,1748680239183,-666.14,0.00016984,2]
[363332533,1748680239192,-430.0,0.00016984,2]
[363332535,1748680239201,-430.0,0.00016984,2]
[363332537,1748680239211,-430.0,0.00016984,2]
[363332539,1748680239221,-430.0,0.00016984,2]
[363332541,1748680239231,-430.0,0.00016984,2]
[363332543,1748680239240,-438.6150415,0.00016984,2]
[363332545,1748680239251,-766.51,0.00016984,2]
[363332547,1748680239260,-4392.05,0.00016984,2]
[363332549,1748680239269,-430.0,0.00016984,2]
[363332551,1748680239279,-430.0,0.00016984,2]
[363332553,1748680239288,-403.30789202,0.00016984,2]
[363332555,1748680239298,-435.08249657,0.00016984,2]
[363332557,1748680239307,-450.04937114,0.00016984,2]
[363332559,1748680239316,-430.0,0.00016984,2]
[363332561,1748680239326,-430.0,0.00016984,2]
[363332564,1748680239335,-650.56,0.00016984,2]
[363332566,1748680239344,-430.0,0.00016984,2]
[363332568,1748680239354,-430.0,0.00016984,2]
[363332569,1748680239364,-430.0,0.00016984,2]
[363332572,1748680239373,-803.72,0.00016984,2]
[363332573,1748680239383,-406.17873588,0.00016984,2]
[363332575,1748680239392,-430.0,0.00016986,2]
[363332577,1748680239402,-430.0,0.00016986,2]
[363332580,1748680239415,-450.0,0.00016986,2]
[363332582,1748680239424,-430.0,0.00016986,2]
[363332584,1748680239434,-430.0,0.00016986,2]
[363332586,1748680239443,-430.0,0.00016986,2]
[363332588,1748680239452,-430.0,0.00016986,2]
[363332590,1748680239461,-430.0,0.00016986,2]
[363332591,1748680239471,-441.32,0.00016986,2]
[363332592,1748680239481,-430.0,0.00016986,2]
[363332593,1748680239491,-430.0,0.00016986,2]
[363332594,1748680239500,-430.0,0.00016986,2]
[363332595,1748680239513,-430.0,0.00016986,2]
[363332596,1748680239523,-1677.22,0.00016986,2]
[363332597,1748680239535,-430.0,0.00016986,2]
[363332598,1748680239545,-430.0,0.00016986,2]
[363332599,1748680239555,-430.0,0.00016986,2]
[363332601,1748680239564,-965.51,0.00016986,2]
[363332603,1748680239574,-2039.92,0.00016986,2]
[363332606,1748680239584,-1308.83,0.00016986,2]
[363332608,1748680239593,-430.0,0.00016986,2]
[363332609,1748680239603,-507.89,0.00016986,2]
[363332612,1748680239612,-430.0,0.00016986,2]
[363332614,1748680239622,-758.04,0.00016986,2]
[363332616,1748680239632,-430.0,0.00016986,2]
[363332618,1748680239641,-430.0,0.00016986,2]
[363332620,1748680239650,-430.0,0.00016986,2]
[363332622,1748680239660,-430.0,0.00016986,2]
[363332624,1748680239670,-1656.47,0.00016986,2]
[363332626,1748680239679,-430.0,0.00016986,2]
[363332628,1748680239688,-430.0,0.00016986,2]
[363332630,1748680239698,-430.0,0.00016986,2]
[363332632,1748680239708,-430.0,0.00016986,2]
[363332634,1748680239717,-692.71,0.00016986,2]
[363332636,1748680239727,-430.0,0.00016986,2]
[363332638,1748680239736,-430.0,0.00016986,2]
[363332640,1748680239745,-430.0,0.00016986,2]
[363332642,1748680239754,-430.0,0.00016986,2]
[363332644,1748680239764,-430.0,0.00016986,2]
[363332646,1748680239774,-454.91,0.00016986,2]
[363332648,1748680239783,-430.0,0.00016986,2]
[363332650,1748680239792,-633.95,0.00016986,2]
[363332652,1748680239804,-430.0,0.00016986,2]
[363332654,1748680239813,-430.0,0.00016986,2]
[363332656,1748680239822,-430.0,0.00016986,2]
[363332658,1748680239831,-430.0,0.00016986,2]
[363332660,1748680239841,-430.0,0.00016986,2]
[363332662,1748680239850,-430.0,0.00016986,2]
[363332664,1748680239861,-430.0,0.00016986,2]
[363332666,1748680239870,-430.0,0.00016986,2]
[363332668,1748680239880,-746.34,0.00016986,2]
[363332670,1748680239889,-430.0,0.00016986,2]
[363332672,1748680239899,-430.0,0.00016986,2]
[363332674,1748680239908,-430.0,0.00016986,2]
[363332676,1748680239919,-631.7,0.00016986,2]
[363332678,1748680239928,-1264.09,0.00016986,2]
[363332680,1748680239938,-430.0,0.00016986,2]
[363332682,1748680239947,-430.0,0.00016986,2]
[363332684,1748680239957,-1512.98,0.00016986,2]
[363332686,1748680239966,-430.0,0.00016986,2]
[363332688,1748680239975,-430.0,0.00016986,2]
[363332690,1748680239985,-1000.0,0.00017068,2]
[363332692,1748680239994,-161.34873999,0.0001716,2]
[363332694,1748680240003,-471.01424625,0.00017233,2]
[363332696,1748680240012,-500.0,0.00017235,2]
[363332698,1748680240022,-500.0,0.00017235,2]
[363332700,1748680240035,-500.0,0.00017253,2]
[363332702,1748680240045,-430.0,0.00017258,2]
[363332704,1748680240055,-430.0,0.00017258,2]
[363332706,1748680240065,-430.0,0.00017258,2]
[363332708,1748680240074,-430.0,0.00017258,2]
[363332710,1748680240083,-430.0,0.00017258,2]
[363332712,1748680240093,-296.33,0.00017258,2]
[363332714,1748680240103,-1285.56,0.00017258,2]
[363332716,1748680240112,-430.0,0.00017258,2]
[363332718,1748680240121,-430.0,0.00017258,2]
[363332720,1748680240130,-562.06,0.00017258,2]
[363332722,1748680240140,-666.14,0.00017258,2]
[363332724,1748680240150,-430.0,0.00017258,2]
[363332726,1748680240160,-430.0,0.00017258,2]
[363332728,1748680240169,-430.0,0.00017258,2]
[363332730,1748680240178,-430.0,0.00017258,2]
[363332732,1748680240188,-766.51,0.00017258,2]
[363332734,1748680240197,-4392.05,0.00017258,2]
[363332736,1748680240206,-430.0,0.00017258,2]
[363332738,1748680240216,-430.0,0.00017258,2]
[363332740,1748680240226,-650.56,0.00017258,2]
[363332742,1748680240235,-430.0,0.00017258,2]
[363332744,1748680240244,-430.0,0.00017258,2]
[363332746,1748680240254,-803.72,0.00017258,2]
[363332748,1748680240264,-430.0,0.0001726,2]
[363332750,1748680240274,-430.0,0.0001726,2]
[363332752,1748680240283,-500.17337876,0.0001726,2]
[363332754,1748680240293,-430.0,0.0001726,2]
[363332756,1748680240303,-430.0,0.0001726,2]
[363332758,1748680240312,-430.0,0.0001726,2]
[363332760,1748680240321,-297.85453295,0.0001726,2]
[363332762,1748680240331,-441.32,0.0001726,2]
[363332764,1748680240340,-430.0,0.0001726,2]
[363332766,1748680240350,-430.0,0.0001726,2]
[363332768,1748680240359,-430.0,0.0001726,2]
[363332770,1748680240369,-1677.22,0.0001726,2]
[363332772,1748680240379,-430.0,0.0001726,2]
[363332774,1748680240388,-430.0,0.0001726,2]
[363332776,1748680240398,-430.0,0.0001726,2]
[363332778,1748680240407,-965.51,0.0001726,2]
[363332780,1748680240418,-2039.92,0.0001726,2]
[363332783,1748680240437,-1308.83,0.0001726,2]
[363332786,1748680240448,-430.0,0.0001726,2]
[363332788,1748680240457,-507.89,0.0001726,2]
[363332790,1748680240467,-430.0,0.0001726,2]
[363332792,1748680240476,-758.04,0.0001726,2]
[363332794,1748680240486,-430.0,0.0001726,2]
[363332796,1748680240495,-430.0,0.0001726,2]
[363332798,1748680240505,-430.0,0.0001726,2]
[363332800,1748680240514,-430.0,0.0001726,2]
[363332802,1748680240524,-1656.47,0.0001726,2]
[363332804,1748680240534,-430.0,0.0001726,2]
[363332806,1748680240543,-430.0,0.0001726,2]
[363332808,1748680240553,-430.0,0.0001726,2]
[363332810,1748680240563,-430.0,0.0001726,2]
[363332812,1748680240573,-692.71,0.0001726,2]
[363332814,1748680240583,-430.0,0.0001726,2]
[363332816,1748680240592,-539.44891595,0.0001726,2]
[363332818,1748680240601,-447.27521055,0.0001726,2]
[363332820,1748680240611,-430.0,0.0001726,2]
[363332822,1748680240620,-430.0,0.0001726,2]
[363332824,1748680240629,-454.91,0.0001726,2]
[363332826,1748680240639,-430.0,0.0001726,2]
[363332828,1748680240648,-633.95,0.0001726,2]
[363332830,1748680240658,-430.0,0.0001726,2]
[363332832,1748680240669,-430.0,0.0001726,2]
[363332834,1748680240679,-430.0,0.0001726,2]
[363332836,1748680240689,-430.0,0.0001726,2]
[363332838,1748680240699,-430.0,0.0001726,2]
[363332840,1748680240708,-430.0,0.0001726,2]
[363332842,1748680240717,-430.0,0.0001726,2]
[363332844,1748680240727,-430.0,0.0001726,2]
[363332846,1748680240737,-746.34,0.0001726,2]
[363332848,1748680240746,-565.72537315,0.0001726,2]
[363332850,1748680240756,-321.37402994,0.0001726,2]
[363332852,1748680240765,-430.0,0.0001726,2]
[363332854,1748680240776,-631.7,0.0001726,2]
[363332856,1748680240785,-1264.09,0.0001726,2]
[363332858,1748680240795,-314.34189379,0.0001726,2]
[363332860,1748680240804,-1512.98,0.0001726,2]
[363332862,1748680240814,-430.0,0.0001726,2]
[363332864,1748680240825,-430.0,0.0001726,2]
[363332866,1748680240835,-480.71318086,0.0001727,2]
[363332869,1748680240845,-500.0,0.0001727,2]
[363332871,1748680240855,-500.0,0.0001727,2]
[363332873,1748680240865,-501.02187263,0.0001727,2]
[363332875,1748680240875,-500.0,0.0001727,2]
[363332877,1748680240885,-500.0,0.0001727,2]
[363332879,1748680240895,-500.27378623,0.0001727,2]
[363332881,1748680240904,-500.0,0.0001727,2]
[363332883,1748680240915,-500.0,0.00017274,2]
[363332885,1748680240925,-500.0,0.00017274,2]
[363332887,1748680240934,-500.0,0.00017274,2]
[363332889,1748680240944,-500.0,0.00017274,2]
[363332891,1748680240954,-500.0,0.00017274,2]
[363332893,1748680240963,-500.0,0.000173,2]
[363332895,1748680240973,-19064.40597019,0.00017337,2]
[363332897,1748680240982,-267.12225678,0.00017463,2]
[363332899,1748680240992,-1285.56,0.00017532,2]
[363332901,1748680241001,-430.0,0.00017532,2]
[363332903,1748680241011,-430.0,0.00017532,2]
[363332905,1748680241021,-562.06,0.00017532,2]
[363332907,1748680241031,-666.14,0.00017532,2]
[363332909,1748680241042,-430.0,0.00017532,2]
[363332911,1748680241051,-430.0,0.00017532,2]
[363332913,1748680241061,-430.0,0.00017532,2]
[363332915,1748680241070,-430.0,0.00017532,2]
[363332917,1748680241081,-766.51,0.00017532,2]
[363332919,1748680241090,-4392.05,0.00017532,2]
[363332921,1748680241100,-430.0,0.00017532,2]
[363332942,1748680241293,-561.45078939,0.00017532,2]
[363332945,1748680241307,-650.56,0.00017532,2]
[363332947,1748680241317,-430.0,0.00017532,2]
[363332949,1748680241327,-430.0,0.00017532,2]
[363332951,1748680241336,-803.72,0.00017532,2]
[363332953,1748680241346,-430.0,0.00017534,2]
[363332955,1748680241355,-430.0,0.00017534,2]
[363332957,1748680241364,-273.70574195,0.00017534,2]
[363332959,1748680241374,-430.0,0.00017534,2]
[363332961,1748680241384,-430.0,0.00017534,2]
[363332963,1748680241393,-441.32,0.00017534,2]
[363332965,1748680241402,-430.0,0.00017534,2]
[363332967,1748680241411,-430.0,0.00017534,2]
[363332969,1748680241421,-1677.22,0.00017534,2]
[363332971,1748680241430,-430.0,0.00017534,2]
[363332973,1748680241439,-430.0,0.00017534,2]
[363332975,1748680241448,-430.0,0.00017534,2]
[363332977,1748680241457,-965.51,0.00017534,2]
[363332979,1748680241466,-2039.92,0.00017534,2]
[363332981,1748680241476,-1308.83,0.00017534,2]
[363332983,1748680241485,-430.0,0.00017534,2]
[363332985,1748680241494,-507.89,0.00017534,2]
[363332987,1748680241504,-430.0,0.00017534,2]
[363332989,1748680241512,-758.04,0.00017534,2]
[363332991,1748680241521,-430.0,0.00017534,2]
[363332993,1748680241531,-430.0,0.00017534,2]
[363332995,1748680241540,-430.0,0.00017534,2]
[363332997,1748680241549,-439.28298965,0.00017534,2]
[363332999,1748680241559,-1656.47,0.00017534,2]
[363333001,1748680241568,-430.0,0.00017534,2]
[363333003,1748680241577,-430.0,0.00017534,2]
[363333005,1748680241586,-430.0,0.00017534,2]
[363333007,1748680241596,-430.0,0.00017534,2]
[363333009,1748680241605,-692.71,0.00017534,2]
[363333011,1748680241614,-430.0,0.00017534,2]
[363333013,1748680241623,-430.0,0.00017534,2]
[363333015,1748680241633,-430.0,0.00017534,2]
[363333017,1748680241642,-454.91,0.00017534,2]
[363333019,1748680241651,-430.0,0.00017534,2]
[363333021,1748680241660,-633.95,0.00017534,2]
[363333023,1748680241669,-430.0,0.00017534,2]
[363333025,1748680241678,-430.0,0.00017534,2]
[363333027,1748680241688,-430.0,0.00017534,2]
[363333029,1748680241697,-430.0,0.00017534,2]
[363333031,1748680241706,-495.34667949,0.00017534,2]
[363333033,1748680241715,-430.0,0.00017534,2]
[363333035,1748680241724,-437.83798343,0.00017534,2]
[363333036,1748680241734,-398.1,0.00017534,2]
[363333038,1748680241743,-746.34,0.00017534,2]
[363333040,1748680241752,-430.0,0.00017534,2]
[363333042,1748680241762,-631.7,0.00017534,2]
[363333044,1748680241772,-1264.09,0.00017534,2]
[363333046,1748680241781,-1512.98,0.00017534,2]
[363333048,1748680241791,-430.0,0.00017534,2]
[363333050,1748680241800,-430.0,0.00017534,2]
[363333052,1748680241809,-501.21348662,0.00017621,2]
[363333054,1748680241819,-500.0,0.00017745,2]
[363333057,1748680241829,-503.73758269,0.00017745,2]
[363333059,1748680241839,-506.63167731,0.00017783,2]
[363333061,1748680241848,-1000.0,0.00017801,2]
[363333063,1748680241858,-1285.56,0.00017806,2]
[363333064,1748680241867,-430.0,0.00017806,2]
[363333066,1748680241877,-430.0,0.00017806,2]
[363333069,1748680241887,-562.06,0.00017806,2]
[363333071,1748680241897,-666.14,0.00017806,2]
[363333073,1748680241907,-430.0,0.00017806,2]
[363333075,1748680241917,-430.0,0.00017806,2]
[363333077,1748680241926,-430.0,0.00017806,2]
[363333079,1748680241935,-430.0,0.00017806,2]
[363333081,1748680241945,-766.51,0.00017806,2]
[363333083,1748680241954,-4392.05,0.00017806,2]
[363333085,1748680241963,-430.0,0.00017806,2]
[363333087,1748680241973,-650.56,0.00017806,2]
[363333089,1748680241982,-430.0,0.00017806,2]
[363333091,1748680241991,-430.0,0.00017806,2]
[363333093,1748680242000,-430.0,0.00017808,2]
[363333095,1748680242010,-430.0,0.00017808,2]
[363333097,1748680242019,-430.0,0.00017808,2]
[363333099,1748680242030,-430.0,0.00017808,2]